bitfinex-derivatives/quotes_BTCF0:USTF0_20241214
["timestamp","ask_amount","ask_price","bid_price","bid_amount"]
[1734210699695,0.14789878,101030.0,101020.0,0.9820635]
[1734210699992,0.26623996,101030.0,101020.0,0.98206223]
[1734210702189,0.26623996,101030.0,101020.0,0.80408058]
[1734210702591,0.26623996,101030.0,101020.0,0.44328058]
[1734210702789,0.26623996,101030.0,101020.0,0.80408058]
[1734210704193,0.26623996,101030.0,101020.0,0.81383483]
[1734210705297,0.26623996,101030.0,101020.0,0.99182423]
[1734210706090,0.26623996,101030.0,101020.0,0.98206998]
[1734210706297,0.26623996,101030.0,101020.0,0.88734006]
[1734210706895,0.14789878,101030.0,101020.0,0.70935066]
[1734210708001,0.14789878,101030.0,101020.0,0.77108058]
[1734210708700,0.14789878,101030.0,101020.0,0.41028058]
[1734210708897,0.14789878,101030.0,101020.0,0.77108058]
[1734210712995,0.26620003,101030.0,101020.0,0.9490948]
[1734210714303,0.26620003,101030.0,101020.0,0.77108058]
[1734210714706,0.14789878,101030.0,101020.0,0.94909661]
[1734210714901,0.26620133,101030.0,101020.0,0.77108058]
[1734210715301,0.26620133,101030.0,101020.0,1.31502515]
[1734210717601,0.26621379,101030.0,101020.0,1.37682108]
[1734210717806,0.20706131,101030.0,101020.0,1.49573706]
[1734210718000,0.20706131,101030.0,101020.0,1.52783706]
[1734210719699,0.17917388,101060.0,101040.0,0.049487]
[1734210719904,0.00148487,101060.0,101050.0,0.771082]
[1734210720105,0.00148487,101060.0,101050.0,1.22287265]
[1734210720305,0.24058901,101070.0,101060.0,0.049478]
[1734210720504,0.25076758,101070.0,101060.0,0.71170255]
[1734210720705,0.25076758,101070.0,101060.0,0.94897426]
[1734210720905,0.25076758,101070.0,101060.0,0.71170255]
[1734210721511,0.07307857,101070.0,101060.0,0.71170255]
[1734210722508,0.07307857,101070.0,101060.0,0.53373784]
[1734210725009,0.59045301,101090.0,101070.0,0.049473]
[1734210725311,0.24398901,101090.0,101080.0,0.17292784]
[1734210725512,0.0663,101090.0,101080.0,0.53372784]
[1734210725811,0.1,101100.0,101090.0,0.049463]
[1734210726004,0.1,101100.0,101090.0,0.71112533]
[1734210726210,0.1,101100.0,101090.0,0.88666712]
[1734210726408,0.1,101100.0,101090.0,0.47199292]
[1734210727402,0.149458,101100.0,101090.0,0.47199292]
[1734210728011,0.21118792,101100.0,101090.0,0.410263]
[1734210728208,0.149458,101100.0,101090.0,0.47199292]
[1734210728906,0.180158,101100.0,101090.0,0.47199292]
[1734210731615,0.149458,101100.0,101090.0,0.47199292]
[1734210732009,0.149458,101100.0,101090.0,0.50529292]
[1734210733719,0.149458,101100.0,101090.0,0.443563]
[1734210733914,0.149458,101100.0,101080.0,0.410267]
[1734210733915,0.049463,101090.0,101080.0,0.410267]
[1734210734121,0.049468,101080.0,101070.0,0.410271]
[1734210734308,0.049468,101080.0,101070.0,0.47200092]
[1734210734309,0.049968,101080.0,101070.0,0.47200092]
[1734210735117,0.0005,101080.0,101070.0,0.47200092]
[1734210735414,0.112264,101090.0,101080.0,0.049468]
[1734210735613,0.473064,101090.0,101080.0,0.06172992]
[1734210735811,0.049468,101080.0,101070.0,0.47200092]
[1734210736214,0.049968,101080.0,101070.0,0.47200092]
[1734210737212,0.049468,101080.0,101070.0,0.50423834]
[1734210738420,0.049468,101080.0,101070.0,0.410271]
[1734210738810,0.049468,101080.0,101070.0,0.50423834]
[1734210747527,0.12198509,101090.0,101080.0,0.049468]
[1734210747918,0.049464,101090.0,101080.0,0.14343534]
[1734210748117,0.149459,101100.0,101090.0,0.049463]
[1734210748329,0.149459,101100.0,101090.0,0.50423034]
[1734210749930,0.29707395,101100.0,101090.0,0.50423034]
[1734210751327,0.29707395,101100.0,101090.0,0.410263]
[1734210753420,0.47476296,101100.0,101090.0,0.50423034]
[1734210753625,0.42530396,101100.0,101090.0,0.50423034]
[1734210753827,0.24761495,101100.0,101090.0,0.50423034]
[1734210754032,0.24761495,101100.0,101090.0,0.53623034]
[1734210757133,0.24761495,101100.0,101090.0,0.71363283]
[1734210757434,0.1,101100.0,101090.0,0.98090454]
[1734210762734,0.1,101100.0,101090.0,0.99104061]
[1734210767629,0.1,101100.0,101090.0,1.35184061]
[1734210769246,0.1,101100.0,101090.0,1.38114629]
[1734210770650,0.1,101100.0,101090.0,1.24737371]
[1734210771144,0.1623,101100.0,101090.0,1.010102]
[1734210771548,0.1623,101100.0,101090.0,1.24737371]
[1734210772347,0.1623,101100.0,101090.0,1.30901022]
[1734210772547,0.1623,101100.0,101090.0,1.34071022]
[1734210773047,0.1623,101100.0,101090.0,1.27907371]
[1734210773553,0.1623,101100.0,101090.0,1.10167122]
[1734210773847,0.1623,101100.0,101090.0,1.27920509]
[1734210774540,0.1623,101100.0,101090.0,1.24750509]
[1734210775149,0.1623,101100.0,101090.0,1.27981138]
[1734210776442,0.1623,101100.0,101090.0,1.10227751]
[1734210776848,0.1623,101100.0,101090.0,1.27995501]
[1734210777451,0.1623,101100.0,101090.0,1.10227751]
[1734210778157,0.211758,101100.0,101090.0,1.18607416]
[1734210778352,0.35937295,101100.0,101090.0,1.18607416]
[1734210778942,0.35937295,101100.0,101090.0,0.58800245]
[1734210779149,0.30991495,101100.0,101090.0,0.91921696]
[1734210779744,0.4281678,101100.0,101090.0,0.91921696]
[1734210779948,0.21825285,101100.0,101090.0,0.77167751]
[1734210780157,0.21825285,101100.0,101090.0,0.80277751]
[1734210780450,0.21825285,101100.0,101090.0,1.09940832]
[1734210780645,0.21825285,101100.0,101090.0,1.36142737]
[1734210781544,0.21825285,101100.0,101090.0,1.12415566]
[1734210782950,0.21825285,101100.0,101090.0,1.1243062]
[1734210786548,0.3658678,101100.0,101090.0,1.1243062]
[1734210788751,0.3658678,101100.0,101090.0,1.48026317]
[1734210789252,0.3658678,101100.0,101090.0,1.11946317]
[1734210789447,0.3658678,101100.0,101090.0,1.1243062]
[1734210789647,0.21825285,101100.0,101090.0,1.48026317]
[1734210791550,0.21825285,101100.0,101090.0,1.44916317]
[1734210791751,0.28285285,101100.0,101090.0,1.46400317]
[1734210791959,0.28285285,101100.0,101090.0,1.44916317]
[1734210793173,0.28285285,101100.0,101090.0,1.46400317]
[1734210793961,0.28285285,101100.0,101090.0,1.44916317]
[1734210794159,0.28285285,101100.0,101090.0,1.46400317]
[1734210794360,0.28285285,101100.0,101090.0,1.35522037]
[1734210794761,0.4304678,101100.0,101090.0,0.9690634]
[1734210794957,0.4304678,101100.0,101090.0,1.0630062]
[1734210795157,0.43063066,101100.0,101090.0,1.03070978]
[1734210799648,0.31221495,101100.0,101090.0,1.03070978]
[1734210804456,0.32201456,101100.0,101090.0,1.03070978]
[1734210804857,0.32201456,101100.0,101090.0,1.26800658]
[1734210805051,0.32201456,101100.0,101090.0,1.26840127]
[1734210805663,0.37147256,101100.0,101090.0,1.26840127]
[1734210808555,0.43311894,101100.0,101090.0,1.20675489]
[1734210808761,0.70795037,101100.0,101090.0,0.41527865]
[1734210808960,0.91261899,101100.0,101090.0,0.17798185]
[1734210809162,0.049463,101090.0,101080.0,0.46474365]
[1734210809361,0.43652096,101090.0,101080.0,0.88719003]
[1734210809565,0.19737735,101090.0,101080.0,0.88719003]
[1734210810061,0.31568578,101090.0,101080.0,0.88719003]
[1734210813258,0.31568578,101090.0,101080.0,0.94883641]
[1734210815769,0.31568578,101090.0,101080.0,0.88719003]
[1734210816156,0.37733216,101090.0,101080.0,0.22744685]
[1734210816363,0.22927735,101090.0,101080.0,0.22744685]
[1734210816569,0.22927735,101090.0,101080.0,0.28909323]
[1734210818067,0.34747804,101090.0,101080.0,0.28909323]
[1734210819071,0.34746927,101090.0,101080.0,0.28909323]
[1734210822076,0.22927735,101090.0,101080.0,0.28909323]
[1734210822270,0.3474623,101090.0,101080.0,0.28909323]
[1734210823165,0.22927735,101090.0,101080.0,0.28909323]
[1734210828182,0.22927735,101090.0,101080.0,0.35073961]
[1734210828477,0.22927735,101090.0,101080.0,0.28909323]
[1734210829472,0.34749168,101090.0,101080.0,0.28909323]
[1734210830277,0.22927735,101090.0,101080.0,0.28909323]
[1734210833081,0.22927735,101090.0,101080.0,0.52639003]
[1734210836281,0.19737735,101090.0,101080.0,0.58803641]
[1734210836478,0.19737735,101090.0,101080.0,0.94883641]
[1734210836980,0.14791435,101090.0,101080.0,0.77085456]
[1734210837172,0.14791435,101090.0,101080.0,1.06748537]
[1734210838194,0.26630459,101090.0,101080.0,1.09251368]
[1734210838480,0.2663045,101090.0,101080.0,1.09251368]
[1734210839567,0.2663045,101090.0,101080.0,1.54321703]
[1734210839769,0.20718214,101090.0,101080.0,1.54321703]
[1734210839973,0.15728214,101090.0,101080.0,1.54321703]
[1734210840478,0.08879199,101090.0,101080.0,1.54321703]
[1734210840668,0.24791435,101100.0,101090.0,0.049463]
[1734210840876,0.24791435,101100.0,101090.0,1.12408837]
[1734210841772,0.1,101100.0,101090.0,1.12408837]
[1734210843071,0.1,101100.0,101090.0,1.15728837]
[1734210844691,0.1,101100.0,101090.0,1.39424664]
[1734210845485,0.1579869,101110.0,101100.0,0.049458]
[1734210845690,0.1579869,101110.0,101100.0,0.94813823]
[1734210845691,0.01007255,101110.0,101100.0,0.94813823]
[1734210845880,0.26006435,101120.0,101100.0,0.98133823]
[1734210846089,0.26006435,101120.0,101110.0,0.11109938]
[1734210846587,0.25956435,101120.0,101110.0,0.11109938]
[1734210846776,0.25956435,101120.0,101110.0,0.28877972]
[1734210847184,0.25956435,101120.0,101110.0,0.11109938]
[1734210847487,0.26006435,101120.0,101110.0,0.11109938]
[1734210847683,0.21061435,101120.0,101110.0,0.53354576]
[1734210848591,0.14791435,101120.0,101110.0,0.53354576]
[1734210849583,0.0005,101120.0,101110.0,0.53354576]
[1734210850383,0.81159562,101130.0,101110.0,0.53354576]
[1734210850577,0.81159562,101130.0,101120.0,0.17274076]
[1734210851184,0.58465439,101130.0,101120.0,0.17274076]
[1734210852087,0.22385439,101130.0,101120.0,0.53354076]
[1734210852292,0.07594004,101130.0,101120.0,0.53354076]
[1734210853990,0.07594004,101130.0,101120.0,0.410248]
[1734210854193,0.07594004,101130.0,101120.0,0.53354076]
[1734210854386,0.07644004,101130.0,101120.0,0.53354076]
[1734210854690,0.12588304,101130.0,101120.0,0.53354076]
[1734210855483,0.07594004,101130.0,101120.0,0.53354076]
[1734210856489,0.07644004,101130.0,101120.0,0.53354076]
[1734210857395,0.07594004,101130.0,101120.0,0.53354076]
[1734210858394,0.07644004,101130.0,101120.0,0.53354076]
[1734210859995,0.54832942,101130.0,101120.0,0.049448]
[1734210860294,0.12588304,101130.0,101120.0,0.11109438]
[1734210862488,0.12538304,101130.0,101120.0,0.11109438]
[1734210863400,0.27297574,101130.0,101120.0,0.11109438]
[1734210868216,0.45008698,101130.0,101120.0,0.11109438]
[1734210871901,0.30249428,101130.0,101120.0,0.11109438]
[1734210872807,0.30101012,101130.0,101120.0,0.11109438]
[1734210875506,0.30101012,101130.0,101120.0,0.28851488]
[1734210876012,0.30101012,101130.0,101120.0,0.35016126]
[1734210877113,0.30101012,101130.0,101120.0,0.28851488]
[1734210877413,0.30147192,101130.0,101120.0,0.28897252]
[1734210880605,0.12389888,101130.0,101120.0,0.3506189]
[1734210881512,0.12389888,101130.0,101120.0,0.28897252]
[1734210883226,0.17197825,101130.0,101120.0,0.28897252]
[1734210883414,0.34971161,101130.0,101120.0,0.28897252]
[1734210883719,0.30163224,101130.0,101120.0,0.52614337]
[1734210891517,0.12389888,101130.0,101120.0,0.52614337]
[1734210897617,0.12389888,101130.0,101120.0,0.46449699]
[1734210898624,0.34976816,101130.0,101120.0,0.46449699]
[1734210898813,0.3016888,101130.0,101120.0,0.46449699]
[1734210899932,0.2693888,101130.0,101120.0,0.46449699]
[1734210900816,0.2693888,101130.0,101120.0,0.52614337]
[1734210901922,0.21018992,101130.0,101120.0,0.88694337]
[1734210902133,0.21018992,101130.0,101120.0,0.94858975]
[1734210902322,0.21018992,101130.0,101120.0,0.88694337]
[1734210902719,0.21018992,101130.0,101120.0,0.77071161]
[1734210903723,0.21018992,101130.0,101120.0,0.94870854]
[1734210903917,0.17778992,101130.0,101120.0,0.94870854]
[1734210904121,0.32595879,101130.0,101120.0,1.10016383]
[1734210904316,0.14816887,101130.0,101120.0,1.45592011]
[1734210904520,0.11855728,101130.0,101120.0,1.45592011]
[1734210905525,0.11855728,101130.0,101120.0,1.10016383]
[1734210905827,0.11855728,101130.0,101120.0,1.16181021]
[1734210906025,0.11855728,101130.0,101120.0,1.51756649]
[1734210906222,0.14816887,101140.0,101120.0,1.51756649]
[1734210906430,0.14816887,101140.0,101130.0,1.04379733]
[1734210906629,0.14816887,101140.0,101130.0,1.34026089]
[1734210906838,0.14816887,101140.0,101130.0,0.92539932]
[1734210907127,0.0005,101150.0,101140.0,0.049438]
[1734210907128,0.14866887,101150.0,101140.0,0.049438]
[1734210907332,0.32583658,101160.0,101140.0,1.00978231]
[1734210907629,0.65071092,101180.0,101160.0,0.049429]
[1734210907826,0.7123573,101180.0,101170.0,0.06164638]
[1734210908034,0.65071092,101180.0,101170.0,0.06164638]
[1734210908424,0.112121,101180.0,101170.0,0.06164638]
[1734210908734,0.54424947,101180.0,101170.0,0.06164638]
[1734210908935,0.54424947,101180.0,101160.0,0.64946669]
[1734210909126,0.54424747,101180.0,101170.0,0.06164638]
[1734210909327,0.049424,101170.0,101160.0,0.64946669]
[1734210909522,0.049424,101170.0,101160.0,0.58782031]
[1734210909723,0.14137038,101170.0,101160.0,0.410229]
[1734210909928,0.079724,101170.0,101160.0,0.47187538]
[1734210910135,0.440524,101170.0,101160.0,0.11107538]
[1734210910329,0.079724,101170.0,101160.0,0.11107538]
[1734210911927,0.049429,101160.0,101150.0,0.410232]
[1734210912127,0.112229,101160.0,101150.0,0.11107838]
[1734210912333,0.112229,101160.0,101150.0,0.47187838]
[1734210912537,0.112729,101160.0,101150.0,0.47187838]
[1734210912723,0.112729,101160.0,101150.0,0.11107838]
[1734210913529,0.112229,101160.0,101150.0,0.11107838]
[1734210914527,0.112729,101160.0,101150.0,0.11107838]
[1734210915635,0.112229,101160.0,101150.0,0.11107838]
[1734210916635,0.112729,101160.0,101150.0,0.11107838]
[1734210917628,0.112229,101160.0,101150.0,0.11107838]
[1734210918739,0.112729,101160.0,101150.0,0.11107838]
[1734210919126,0.0317,101160.0,101150.0,0.53352476]
[1734210919634,0.0317,101160.0,101150.0,0.56462476]
[1734210920124,0.0005,101160.0,101150.0,0.56462476]
[1734210920324,0.0005,101160.0,101150.0,0.59462476]
[1734210920632,0.0303,101170.0,101160.0,0.049429]
[1734210920838,0.0303,101170.0,101160.0,0.11107538]
[1734210921538,0.0308,101170.0,101160.0,0.11107538]
[1734210922145,0.0308,101170.0,101160.0,0.049429]
[1734210922333,0.0308,101170.0,101160.0,0.11107538]
[1734210922536,0.0303,101170.0,101160.0,0.11107538]
[1734210923133,0.079724,101170.0,101160.0,0.11107538]
[1734210923637,0.080224,101170.0,101160.0,0.11107538]
[1734210924526,0.079724,101170.0,101160.0,0.11107538]
[1734210925742,0.080224,101170.0,101160.0,0.11107538]
[1734210926746,0.079724,101170.0,101160.0,0.11107538]
[1734210926934,0.0303,101170.0,101160.0,0.53352176]
[1734210930130,0.0321,101180.0,101170.0,0.049424]
[1734210930339,0.0321,101180.0,101170.0,0.56561676]
[1734210930644,0.0316,101180.0,101170.0,0.56561676]
[1734210931039,0.0316,101180.0,101170.0,0.74320807]
[1734210931442,0.00330292,101190.0,101170.0,0.74320807]
[1734210931647,0.00330292,101190.0,101180.0,0.48409276]
[1734210932944,0.00330292,101190.0,101180.0,0.71110307]
[1734210933649,0.00380292,101190.0,101180.0,0.71110307]
[1734210934837,0.00380292,101190.0,101180.0,0.94809049]
[1734210937144,0.00380292,101190.0,101180.0,0.53351176]
[1734210937644,0.00232,101190.0,101180.0,0.59515814]
[1734210939160,0.00232,101190.0,101180.0,0.60490344]
[1734210940369,0.00232,101190.0,101180.0,0.54325706]
[1734210941767,0.00232,101190.0,101180.0,0.72017982]
[1734210942550,0.00182,101190.0,101180.0,0.72017982]
[1734210945350,0.00182,101190.0,101180.0,0.7818262]
[1734210945550,0.00182,101190.0,101180.0,1.01772322]
[1734210948050,0.00182,101190.0,101180.0,0.95607684]
[1734210948255,0.1933,101200.0,101190.0,0.049414]
[1734210948556,0.1928,101200.0,101190.0,0.53350676]
[1734210949652,0.1933,101200.0,101190.0,0.53350676]
[1734210950954,0.1933,101200.0,101190.0,0.71042952]
[1734210951550,0.1928,101200.0,101190.0,0.71042952]
[1734210951750,0.1928,101200.0,101190.0,0.64878314]
[1734210952242,0.1928,101200.0,101190.0,0.47186038]
[1734210953446,0.1928,101200.0,101190.0,0.410214]
[1734210953651,0.1928,101200.0,101190.0,0.47186038]
[1734210953883,0.66465538,101200.0,101190.0,0.17692276]
[1734210954155,0.66465538,101200.0,101190.0,0.049414]
[1734210954359,0.81217385,101200.0,101180.0,0.42244638]
[1734210954549,0.81217385,101200.0,101190.0,0.049414]
[1734210954751,0.75052747,101200.0,101190.0,0.049414]
[1734210954948,0.75052747,101200.0,101190.0,0.11106038]
[1734210955251,0.34031847,101200.0,101190.0,0.11106038]
[1734210955857,0.38972747,101200.0,101190.0,0.049414]
[1734210956158,0.34031847,101200.0,101190.0,0.11106038]
[1734210956557,0.34031847,101200.0,101190.0,0.47186038]
[1734210958355,0.34031847,101200.0,101190.0,0.64878314]
[1734210960256,0.34031847,101200.0,101190.0,0.22633676]
[1734210960451,0.34031847,101200.0,101190.0,0.64878314]
[1734210960452,0.51734063,101200.0,101190.0,0.64878314]
[1734210960657,0.34031847,101200.0,101190.0,0.94632654]
[1734210960866,0.34031847,101200.0,101190.0,0.88468016]
[1734210961055,0.34031847,101200.0,101190.0,0.94632654]
[1734210961563,0.34031847,101200.0,101190.0,1.00262867]
[1734210962352,0.34031847,101200.0,101190.0,0.8853592]
[1734210963163,0.34031847,101200.0,101190.0,0.7077574]
[1734210963757,0.34031847,101200.0,101190.0,0.88539007]
[1734210963958,0.34031847,101200.0,101190.0,0.7077574]
[1734210964164,0.51734063,101200.0,101190.0,0.52461424]
[1734210964758,0.57898701,101200.0,101190.0,0.46296786]
[1734210965066,0.84167754,101200.0,101190.0,0.22707084]
[1734210965566,0.84167754,101200.0,101190.0,0.049414]
[1734210970169,0.75106317,101200.0,101190.0,0.28871722]
[1734210970869,0.81270955,101200.0,101190.0,0.22707084]
[1734210971168,0.81270955,101200.0,101180.0,0.46297186]
[1734210971169,0.049414,101190.0,101180.0,0.46297186]
[1734210971470,0.049414,101190.0,101180.0,0.22707484]
[1734210971471,0.43612999,101190.0,101180.0,0.22707484]
[1734210972167,0.79692999,101190.0,101180.0,0.22707484]
[1734210972376,0.58723616,101190.0,101180.0,0.11106438]
[1734210973282,0.58723616,101190.0,101180.0,0.049418]
[1734210973771,0.7352347,101190.0,101180.0,0.049418]
[1734210974177,0.55821254,101190.0,101180.0,0.049418]
[1734210975367,0.7352347,101190.0,101180.0,0.049418]
[1734210976276,0.55821254,101190.0,101180.0,0.049418]
[1734210976870,0.55821254,101190.0,101180.0,0.14320522]
[1734210977069,0.26634468,101190.0,101180.0,0.68166206]
[1734210977272,0.11834614,101190.0,101180.0,0.91755908]
[1734210977470,0.20710271,101190.0,101180.0,0.91755908]
[1734210978072,0.08875657,101190.0,101180.0,1.02082857]
[1734210978280,0.08875657,101190.0,101180.0,1.34659984]
[1734210978476,0.30710271,101200.0,101190.0,0.049414]
[1734210978676,0.30710271,101200.0,101190.0,0.82419264]
[1734210979282,0.30710271,101200.0,101190.0,0.94817986]
[1734210983278,0.21834614,101200.0,101190.0,0.85439264]
[1734210983874,0.30709935,101200.0,101190.0,0.85439264]
[1734210987375,0.33909935,101200.0,101190.0,0.85439264]
[1734210988574,0.33909935,101200.0,101190.0,0.82419264]
[1734210988575,0.25034614,101200.0,101190.0,0.82419264]
[1734210988775,0.28898722,101200.0,101190.0,0.58763342]
[1734210988973,0.43698576,101200.0,101190.0,0.58763342]
[1734210989178,0.34319854,101200.0,101190.0,0.58763342]
[1734210989881,0.39260754,101200.0,101190.0,0.58763342]
[1734210991678,0.39260754,101200.0,101190.0,0.22683342]
[1734210991875,0.39260754,101200.0,101190.0,0.58763342]
[1734210992379,0.34319854,101200.0,101190.0,0.58763342]
[1734210995069,0.46153278,101200.0,101190.0,0.58763342]
[1734210995268,0.34319854,101200.0,101190.0,0.58763342]
[1734210996382,0.34319854,101200.0,101180.0,0.22683742]
[1734210996383,0.049414,101190.0,101180.0,0.22683742]
[1734210996577,0.60252389,101190.0,101170.0,0.77477864]
[1734210996773,0.38644289,101180.0,101170.0,0.17741942]
[1734210997387,0.74724289,101180.0,101160.0,0.82420364]
[1734210997582,0.08875429,101170.0,101160.0,0.58814442]
[1734210997784,0.20709335,101170.0,101160.0,0.58814442]
[1734210998686,0.20709335,101170.0,101160.0,0.58764442]
[1734210999681,0.20709335,101170.0,101160.0,0.58814442]
[1734211000687,0.20709335,101170.0,101160.0,0.58764442]
[1734211001686,0.20709335,101170.0,101160.0,0.58814442]
[1734211001687,0.25651735,101170.0,101160.0,0.58814442]
[1734211001879,0.25651735,101170.0,101160.0,0.410725]
[1734211002280,0.35030457,101170.0,101160.0,0.410725]
[1734211002483,0.25651735,101170.0,101160.0,0.410725]
[1734211002692,0.25651735,101170.0,101160.0,0.410225]
[1734211003291,0.20709335,101170.0,101160.0,0.50401222]
[1734211003480,0.08875429,101170.0,101160.0,0.50401222]
[1734211003682,0.08875429,101170.0,101160.0,0.50451222]
[1734211004183,0.08875429,101170.0,101160.0,0.410725]
[1734211004585,0.08875429,101170.0,101160.0,0.410225]
[1734211005591,0.08875429,101170.0,101160.0,0.410725]
[1734211006586,0.08875429,101170.0,101160.0,0.50401222]
[1734211007187,0.36164284,101180.0,101170.0,0.049424]
[1734211007786,0.27288855,101180.0,101170.0,0.049424]
[1734211012095,0.27288855,101180.0,101170.0,0.22684342]
[1734211013889,0.27288855,101180.0,101170.0,0.049424]
[1734211014487,0.27288855,101180.0,101170.0,0.22684342]
[1734211018486,0.30248616,101180.0,101170.0,0.22684342]
[1734211019300,0.7864247,101180.0,101170.0,0.22684342]
[1734211019486,0.7864247,101180.0,101170.0,0.17741942]
[1734211019800,0.049424,101170.0,101160.0,0.82420564]
[1734211019999,0.22931782,101170.0,101160.0,0.58764642]
[1734211020188,0.22931782,101170.0,101160.0,0.82420564]
[1734211021286,0.16774855,101170.0,101160.0,0.82420564]
[1734211022093,0.35036081,101170.0,101160.0,0.82420564]
[1734211022295,0.35036081,101170.0,101160.0,0.58764642]
[1734211022488,0.35036081,101170.0,101160.0,0.17741942]
[1734211022489,0.65200191,101170.0,101160.0,0.17741942]
[1734211022689,0.049429,101160.0,101150.0,0.46391164]
[1734211022993,0.74876929,101160.0,101150.0,0.17791942]
[1734211023497,0.92579145,101160.0,101150.0,0.0005]
[1734211023695,0.92579145,101160.0,101140.0,0.87513256]
[1734211023899,0.25664415,101150.0,101140.0,0.82569656]
[1734211024597,0.25664415,101150.0,101140.0,0.64827714]
[1734211024801,0.25664415,101150.0,101140.0,0.82640068]
[1734211025707,0.1678398,101150.0,101140.0,0.64827714]
[1734211026303,0.26168104,101150.0,101140.0,0.64827714]
[1734211026704,0.26168104,101150.0,101140.0,0.4161717]
[1734211026705,0.62248104,101150.0,101140.0,0.4161717]
[1734211027408,0.77048009,101150.0,101140.0,0.4161717]
[1734211027611,0.77048009,101150.0,101140.0,0.17961248]
[1734211027813,0.77048009,101150.0,101140.0,0.17762956]
[1734211028308,0.72104609,101150.0,101130.0,0.85452778]
[1734211028510,0.13819286,101140.0,101130.0,0.85452778]
[1734211030513,0.049438,101140.0,101130.0,0.85452778]
[1734211031005,0.16999286,101140.0,101130.0,0.85452778]
[1734211031402,0.081238,101140.0,101130.0,0.85452778]
[1734211031912,0.16999286,101140.0,101130.0,0.85502778]
[1734211032406,0.081238,101140.0,101130.0,0.85502778]
[1734211032811,0.081238,101140.0,101130.0,0.85452778]
[1734211033007,0.17507924,101140.0,101130.0,0.85452778]
[1734211033211,0.17507924,101140.0,101130.0,0.82442778]
[1734211033212,0.20747924,101140.0,101130.0,0.82442778]
[1734211033403,0.3271341,101140.0,101130.0,0.17762956]
[1734211033604,0.4455399,101140.0,101130.0,0.17762956]
[1734211033799,0.4455399,101140.0,101130.0,0.0005]
[1734211034010,0.71758504,101140.0,101130.0,0.0005]
[1734211034714,0.71758504,101140.0,101120.0,0.22707656]
[1734211035014,0.23191077,101130.0,101120.0,0.22707656]
[1734211035517,0.23191077,101130.0,101120.0,0.049447]
[1734211036008,0.049448,101120.0,101110.0,0.61878056]
[1734211036205,0.079548,101120.0,101110.0,0.61878056]
[1734211036606,0.079548,101120.0,101110.0,0.441151]
[1734211036807,0.17338924,101120.0,101110.0,0.441151]
[1734211037015,0.20428924,101120.0,101110.0,0.441151]
[1734211037615,0.20428924,101120.0,101110.0,0.049451]
[1734211037812,0.049453,101110.0,101100.0,0.82603115]
[1734211038009,0.049453,101110.0,101100.0,0.41184237]
[1734211039612,0.11045,101120.0,101110.0,0.049453]
[1734211039815,0.061,101120.0,101110.0,0.443953]
[1734211040015,0.110448,101120.0,101110.0,0.443953]
[1734211044223,0.079548,101120.0,101110.0,0.443953]
[1734211044812,0.08858648,101130.0,101120.0,0.049448]
[1734211045008,0.69250485,101140.0,101120.0,0.049448]
[1734211045009,0.53212548,101140.0,101130.0,0.049443]
[1734211045315,0.17132548,101140.0,101130.0,0.081543]
[1734211045715,0.17132548,101140.0,101130.0,0.442343]
[1734211046424,0.18103326,101140.0,101130.0,0.442343]
[1734211048613,0.18103326,101140.0,101130.0,0.61997256]
[1734211049615,0.29943906,101140.0,101130.0,0.61997256]
[1734211050520,0.26613906,101140.0,101130.0,0.61997256]
[1734211051417,0.17755258,101140.0,101130.0,0.61997256]
[1734211053624,0.21681543,101140.0,101130.0,0.61997256]
[1734211053928,0.09840963,101140.0,101130.0,0.7138138]
[1734211054320,0.21681543,101140.0,101130.0,0.7138138]
[1734211054921,0.08870185,101140.0,101130.0,1.04421426]
[1734211055222,0.08870185,101140.0,101130.0,0.95037302]
[1734211055430,0.11940185,101150.0,101140.0,0.049438]
[1734211055623,0.0307,101150.0,101140.0,0.91804719]
[1734211056026,0.11940185,101150.0,101140.0,0.91804719]
[1734211056528,0.08920185,101150.0,101140.0,0.91804719]
[1734211056830,0.0005,101150.0,101140.0,1.37897945]
[1734211057217,0.0005,101150.0,101140.0,1.09730973]
[1734211057424,0.0005,101150.0,101140.0,0.80243846]
[1734211057823,0.23940765,101160.0,101150.0,0.049434]
[1734211058022,0.23940765,101160.0,101150.0,0.6813797]
[1734211058428,0.12100185,101160.0,101150.0,0.6813797]
[1734211058828,0.12150185,101160.0,101150.0,0.6813797]
[1734211059033,0.08920185,101160.0,101150.0,0.6813797]
[1734211059233,0.08920185,101160.0,101150.0,0.7131797]
[1734211059823,0.08870185,101160.0,101150.0,0.7131797]
[1734211060328,0.13813085,101160.0,101150.0,0.442034]
[1734211060526,0.17003085,101160.0,101150.0,0.442034]
[1734211060827,0.17053085,101160.0,101150.0,0.442034]
[1734211061830,0.17003085,101160.0,101150.0,0.442034]
[1734211062725,0.17053085,101160.0,101150.0,0.442034]
[1734211063836,0.17003085,101160.0,101150.0,0.442034]
[1734211064831,0.17053085,101160.0,101150.0,0.442034]
[1734211065736,0.17003085,101160.0,101150.0,0.442034]
[1734211066933,0.17003085,101160.0,101140.0,0.17730446]
[1734211066934,0.62517209,101160.0,101140.0,0.17730446]
[1734211067135,0.26024605,101150.0,101140.0,0.049437]
[1734211067327,0.73945185,101150.0,101140.0,0.049437]
[1734211068329,0.65075,101150.0,101140.0,0.049437]
[1734211069331,0.5891398,101150.0,101140.0,0.049437]
[1734211069530,0.73713885,101150.0,101140.0,0.049437]
[1734211072534,0.74702108,101150.0,101140.0,0.049437]
[1734211073334,0.62861528,101150.0,101140.0,0.049437]
[1734211074444,0.26781528,101150.0,101140.0,0.049437]
[1734211074645,0.62861528,101150.0,101140.0,0.049437]
[1734211081464,0.72249251,101150.0,101140.0,0.049437]
[1734211081667,0.72249251,101150.0,101130.0,0.77466368]
[1734211081864,0.4412815,101140.0,101130.0,0.58754746]
[1734211082058,0.34740427,101140.0,101130.0,0.58754746]
[1734211082267,0.29796627,101140.0,101130.0,0.68142469]
[1734211082463,0.14996722,101140.0,101130.0,0.68142469]
[1734211082667,0.23874636,101140.0,101130.0,0.68142469]
[1734211083070,0.28818436,101140.0,101130.0,0.58754746]
[1734211083271,0.19940522,101140.0,101130.0,0.58754746]
[1734211084365,0.28818228,101140.0,101130.0,0.58754746]
[1734211084965,0.28818228,101140.0,101130.0,0.48754746]
[1734211085271,0.34740427,101140.0,101130.0,0.48754746]
[1734211085574,0.31580427,101140.0,101130.0,0.48754746]
[1734211085766,0.25657675,101140.0,101130.0,0.48754746]
[1734211087667,0.16780522,101140.0,101130.0,0.48754746]
[1734211088373,0.25658305,101140.0,101130.0,0.48754746]
[1734211089874,0.20714505,101140.0,101130.0,0.48754746]
[1734211090269,0.11836722,101140.0,101130.0,0.72410668]
[1734211090769,0.20717741,101140.0,101130.0,1.40572983]
[1734211090973,0.20717741,101150.0,101140.0,0.049438]
[1734211091164,0.08881019,101150.0,101140.0,1.37336383]